fUST/lending_fUST_20250226
["ID","MTS","AMOUNT","RATE_DAILY","PERIOD"]
[354451659,1740505834850,-501.94280497,0.00037921,5]
[354451660,1740505834860,-1455.64742412,0.00038119,2]
[354451661,1740505834876,-895.38451709,0.00038141,8]
[354451662,1740505834886,-645.67,0.00038356,30]
[354451663,1740505834896,-151.0,0.000385,20]
[354451664,1740505834906,-645.67,0.0003863,31]
[354451665,1740505834916,-361.03102955,0.00038833,5]
[354451666,1740505834927,-645.67,0.00038904,32]
[354451667,1740505834936,-189.073,0.00038931,14]
[354451668,1740505834946,-1713.01139078,0.00039,22]
[354451669,1740505834956,-645.67,0.00039178,33]
[354451670,1740505834966,-645.67,0.00039452,34]
[354451671,1740505834976,-151.0,0.000395,17]
[354451672,1740505834985,-895.38451709,0.00039624,8]
[354451673,1740505834995,-15558.1339398,0.00039719,4]
[354451674,1740505835005,-645.67,0.00039726,35]
[354451675,1740505835015,-1455.64742412,0.00039729,2]
[354451676,1740505835025,-579.56017,0.00039889,14]
[354451677,1740505835034,-579.56017,0.00039889,14]
[354451678,1740505835044,-579.56017,0.00039889,14]
[354451679,1740505835053,-579.56017,0.00039889,14]
[354451680,1740505835064,-1143.316975,0.00039889,14]
[354451681,1740505835073,-1143.316975,0.00039889,14]
[354451682,1740505835084,-151.0,0.000399,12]
[354451683,1740505835094,-500.0,0.00039965,5]
[354451684,1740505835103,-500.0,0.00039965,5]
[354451685,1740505835114,-15558.1339398,0.00039968,4]
[354451686,1740505835123,-500.65130225,0.00039973,5]
[354451687,1740505835133,-505.39739813,0.00039973,5]
[354451688,1740505835142,-500.0,0.00039973,5]
[354451689,1740505835151,-426.104741,0.00039976,14]
[354451690,1740505835162,-1143.316975,0.00039976,14]
[354451691,1740505835171,-2376.344803,0.00039976,14]
[354451692,1740505835181,-2376.344803,0.00039976,14]
[354451693,1740505835191,-696.553181,0.00039976,14]
[354451694,1740505835200,-696.553181,0.00039976,14]
[354451695,1740505835210,-176.074192,0.00039976,14]
[354451696,1740505835219,-176.074192,0.00039976,14]
[354451697,1740505835229,-579.56017,0.00039978,14]
[354451698,1740505835239,-579.56017,0.00039978,14]
[354451699,1740505835248,-15558.1339398,0.00039979,4]
[354451700,1740505835258,-15558.1339398,0.0003998,4]
[354451701,1740505835267,-151.0,0.00039987,14]
[354451702,1740505835277,-151.0,0.00039987,14]
[354451703,1740505835287,-426.104741,0.00039987,14]
[354451704,1740505835296,-1143.316975,0.00039987,14]
[354451705,1740505835306,-2376.344803,0.00039987,14]
[354451706,1740505835315,-2376.344803,0.00039987,14]
[354451707,1740505835324,-696.553181,0.00039987,14]
[354451708,1740505835334,-696.553181,0.00039987,14]
[354451709,1740505835344,-176.074192,0.00039987,14]
[354451710,1740505835354,-176.074192,0.00039987,14]
[354451711,1740505835364,-151.0,0.00039987,14]
[354451712,1740505835373,-151.0,0.00039987,14]
[354451713,1740505835383,-2768.435971,0.00039987,3]
[354451714,1740505835393,-2768.435971,0.00039987,3]
[354451715,1740505835402,-151.0,0.00039988,14]
[354451716,1740505835412,-278.262744,0.00039988,14]
[354451717,1740505835421,-714.600915,0.00039988,14]
[354451718,1740505835432,-714.600915,0.00039988,14]
[354451719,1740505835441,-151.0,0.00039988,14]
[354451720,1740505835451,-151.0,0.00039988,14]
[354451721,1740505835460,-151.400851,0.00039988,14]
[354451722,1740505835470,-151.0,0.00039988,14]
[354451723,1740505835479,-151.779412,0.00039988,14]
[354451724,1740505835488,-151.0,0.00039988,14]
[354451725,1740505835498,-151.0,0.00039988,14]
[354451726,1740505835507,-194.094553,0.00039988,14]
[354451727,1740505835517,-151.0,0.00039988,14]
[354451728,1740505835526,-151.0,0.00039988,14]
[354451729,1740505835535,-151.0,0.00039988,14]
[354451730,1740505835546,-151.0,0.00039988,14]
[354451731,1740505835558,-151.0,0.00039988,14]
[354451732,1740505835568,-151.0,0.00039988,14]
[354451733,1740505835578,-394.560138,0.00039988,14]
[354451734,1740505835587,-394.560138,0.00039988,14]
[354451735,1740505835598,-394.560138,0.00039988,14]
[354451736,1740505835607,-394.560138,0.00039988,14]
[354451737,1740505835616,-394.560138,0.00039988,14]
[354451738,1740505835628,-394.560138,0.00039988,14]
[354451739,1740505835638,-151.0,0.00039988,14]
[354451740,1740505835648,-176.384747,0.00039988,14]
[354451741,1740505835658,-242.497633,0.00039988,14]
[354451742,1740505835667,-242.497633,0.00039988,14]
[354451743,1740505835677,-242.497633,0.00039988,14]
[354451744,1740505835686,-242.497633,0.00039988,14]
[354451745,1740505835696,-242.497633,0.00039988,14]
[354451746,1740505835707,-242.497633,0.00039988,14]
[354451747,1740505835716,-284.016483,0.00039988,14]
[354451748,1740505835726,-284.016483,0.00039988,14]
[354451749,1740505835736,-284.016483,0.00039988,14]
[354451750,1740505835745,-284.016483,0.00039988,14]
[354451751,1740505835755,-284.016483,0.00039988,14]
[354451752,1740505835764,-284.016483,0.00039988,14]
[354451753,1740505835773,-151.0,0.00039988,14]
[354451754,1740505835783,-335.66037,0.00039988,14]
[354451755,1740505835793,-335.66037,0.00039988,14]
[354451756,1740505835802,-232.128744,0.00039988,14]
[354451757,1740505835811,-232.128744,0.00039988,14]
[354451758,1740505835821,-151.0,0.00039988,14]
[354451759,1740505835830,-714.600915,0.0003999,14]
[354451760,1740505835840,-714.600915,0.0003999,14]
[354451761,1740505835850,-151.0,0.0003999,14]
[354451762,1740505835861,-151.0,0.0003999,14]
[354451763,1740505835870,-394.560138,0.0003999,14]
[354451764,1740505835880,-394.560138,0.0003999,14]
[354451765,1740505835890,-242.497633,0.0003999,14]
[354451766,1740505835899,-242.497633,0.0003999,14]
[354451767,1740505835909,-284.016483,0.0003999,14]
[354451768,1740505835919,-284.016483,0.0003999,14]
[354451769,1740505835929,-426.104741,0.0003999,14]
[354451770,1740505835938,-579.56017,0.0003999,14]
[354451771,1740505835948,-579.56017,0.0003999,14]
[354451772,1740505835957,-151.0,0.0003999,14]
[354451773,1740505835967,-1143.316975,0.0003999,14]
[354451774,1740505835976,-2376.344803,0.0003999,14]
[354451775,1740505835986,-2376.344803,0.0003999,14]
[354451776,1740505835995,-696.553181,0.0003999,14]
[354451777,1740505836004,-696.553181,0.0003999,14]
[354451778,1740505836014,-151.0,0.0003999,14]
[354451779,1740505836023,-176.074192,0.0003999,14]
[354451780,1740505836032,-176.074192,0.0003999,14]
[354451781,1740505836042,-151.0,0.0003999,14]
[354451782,1740505836051,-151.0,0.0003999,14]
[354451783,1740505836060,-151.0,0.0003999,14]
[354451784,1740505836070,-151.0,0.0003999,5]
[354451785,1740505836079,-184.205019,0.0003999,14]
[354451786,1740505836089,-184.205019,0.0003999,14]
[354451787,1740505836099,-1185.042738,0.0003999,14]
[354451788,1740505836108,-1185.042738,0.0003999,14]
[354451789,1740505836118,-31116.2678796,0.0003999,4]
[354451790,1740505836128,-714.600915,0.00039998,14]
[354451791,1740505836137,-714.600915,0.00039998,14]
[354451792,1740505836147,-151.0,0.00039999,14]
[354451793,1740505836156,-151.0,0.00039999,14]
[354451794,1740505836166,-181.463709,0.00039999,14]
[354451795,1740505836175,-181.463709,0.00039999,14]
[354451796,1740505836184,-151.0,0.00039999,14]
[354451797,1740505836194,-151.0,0.00039999,14]
[354451798,1740505836204,-296.617118,0.00039999,14]
[354451799,1740505836214,-151.0,0.0004,14]
[354451800,1740505836223,-151.0,0.0004,14]
[354451801,1740505836233,-151.0,0.0004,14]
[354451802,1740505836243,-151.0,0.0004,14]
[354451803,1740505836436,-151.0,0.0004,14]
[354451804,1740505836446,-151.0,0.0004,14]
[354451805,1740505836456,-151.0,0.0004,14]
[354451806,1740505836465,-151.0,0.0004,14]
[354451807,1740505836474,-151.0,0.0004,14]
[354451808,1740505836484,-181.463709,0.0004,14]
[354451809,1740505836494,-181.463709,0.0004,14]
[354451810,1740505836503,-181.463709,0.0004,14]
[354451811,1740505836513,-181.463709,0.0004,14]
[354451812,1740505836522,-181.463709,0.0004,14]
[354451813,1740505836531,-181.463709,0.0004,14]
[354451814,1740505836541,-151.0,0.0004,14]
[354451815,1740505836554,-151.0,0.0004,14]
[354451816,1740505836563,-151.0,0.0004,14]
[354451817,1740505836573,-714.600915,0.0004,14]
[354451818,1740505836582,-714.600915,0.0004,14]
[354451819,1740505836591,-714.600915,0.0004,14]
[354451820,1740505836601,-714.600915,0.0004,14]
[354451821,1740505836611,-151.0,0.0004,14]
[354451822,1740505836620,-151.0,0.0004,14]
[354451823,1740505836631,-151.0,0.0004,14]
[354451824,1740505836640,-151.0,0.0004,14]
[354451825,1740505836649,-394.560138,0.0004,14]
[354451826,1740505836659,-394.560138,0.0004,14]
[354451827,1740505836668,-394.560138,0.0004,14]
[354451828,1740505836678,-394.560138,0.0004,14]
[354451829,1740505836688,-242.497633,0.0004,14]
[354451830,1740505836697,-242.497633,0.0004,14]
[354451831,1740505836707,-242.497633,0.0004,14]
[354451832,1740505836717,-242.497633,0.0004,14]
[354451833,1740505836726,-284.016483,0.0004,14]
[354451834,1740505836735,-284.016483,0.0004,14]
[354451835,1740505836745,-284.016483,0.0004,14]
[354451836,1740505836754,-284.016483,0.0004,14]
[354451837,1740505836764,-426.104741,0.0004,14]
[354451838,1740505836773,-426.104741,0.0004,14]
[354451839,1740505836782,-426.104735,0.0004,14]
[354451840,1740505836792,-579.56017,0.0004,14]
[354451841,1740505836801,-579.56017,0.0004,14]
[354451842,1740505836810,-579.56017,0.0004,14]
[354451843,1740505836819,-579.56017,0.0004,14]
[354451844,1740505836828,-151.0,0.0004,14]
[354451845,1740505836838,-151.0,0.0004,14]
[354451846,1740505836847,-1143.316975,0.0004,14]
[354451847,1740505836857,-1143.316975,0.0004,14]
[354451848,1740505836867,-1143.316977,0.0004,14]
[354451849,1740505836876,-2376.344803,0.0004,14]
[354451850,1740505836886,-2376.344803,0.0004,14]
[354451851,1740505836896,-2376.344803,0.0004,14]
[354451852,1740505836905,-2376.344803,0.0004,14]
[354451853,1740505836915,-2376.344803,0.0004,14]
[354451854,1740505836924,-2376.344812,0.0004,14]
[354451855,1740505836933,-696.553181,0.0004,14]
[354451856,1740505836942,-696.553181,0.0004,14]
[354451857,1740505836951,-696.553181,0.0004,14]
[354451858,1740505836961,-696.553181,0.0004,14]
[354451859,1740505836970,-696.553181,0.0004,14]
[354451860,1740505836979,-696.553185,0.0004,14]
[354451861,1740505836988,-28291.38,0.0004,30]
[354451862,1740505836998,-176.074192,0.0004,14]
[354451863,1740505837007,-176.074192,0.0004,14]
[354451864,1740505837017,-176.074192,0.0004,14]
[354451865,1740505837027,-176.074192,0.0004,14]
[354451866,1740505837037,-176.074192,0.0004,14]
[354451867,1740505837046,-176.074184,0.0004,14]
[354451868,1740505837055,-163.90311,0.0004,14]
[354451869,1740505837065,-151.0,0.0004,14]
[354451870,1740505837075,-335.66037,0.0004,14]
[354451871,1740505837084,-335.66037,0.0004,14]
[354451872,1740505837094,-232.128744,0.0004,14]
[354451873,1740505837103,-232.128744,0.0004,14]
[354451874,1740505837113,-151.0,0.0004,14]
[354451875,1740505837123,-2768.435971,0.0004,3]
[354451876,1740505837133,-2768.435971,0.0004,3]
[354451877,1740505837143,-2957.83342361,0.0004,30]
[354451878,1740505837152,-645.67,0.0004,36]
[354451879,1740505837161,-151.0,0.000401,10]
[354451880,1740505837171,-151.0,0.000401,14]
[354451881,1740505837180,-190.763913,0.000401,14]
[354451882,1740505837189,-394.560138,0.000401,14]
[354451883,1740505837198,-394.560138,0.000401,14]
[354451884,1740505837208,-242.497633,0.000401,14]
[354451885,1740505837217,-242.497633,0.000401,14]
[354451886,1740505837226,-284.016483,0.000401,14]
[354451887,1740505837235,-284.016483,0.000401,14]
[354451888,1740505837244,-579.56017,0.000401,14]
[354451889,1740505837254,-579.56017,0.000401,14]
[354451890,1740505837263,-151.0,0.000401,14]
[354451891,1740505837272,-151.0,0.000401,14]
[354451892,1740505837281,-4182.402107,0.000401,14]
[354451893,1740505837290,-4182.402107,0.000401,14]
[354451894,1740505837299,-584.462487,0.000401,14]
[354451895,1740505837308,-584.462487,0.000401,14]
[354451896,1740505837318,-151.0,0.000401,14]
[354451897,1740505837327,-1003.659899,0.000401,14]
[354451898,1740505837336,-324.519974,0.000401,14]
[354451899,1740505837346,-1003.659899,0.000401,14]
[354451900,1740505837355,-324.519974,0.000401,14]
[354451901,1740505837370,-151.0,0.000401,14]
[354451902,1740505837380,-163.07754488,0.00040259,5]
[354451903,1740505837389,-645.67,0.00040273,37]
[354451904,1740505837399,-500.56966165,0.00040452,5]
[354451905,1740505837409,-1000.0,0.00040452,5]
[354451906,1740505837418,-1000.0,0.00040452,5]
[354451907,1740505837428,-943.364172,0.00040452,5]
[354451908,1740505837437,-1000.0,0.00040452,5]
[354451909,1740505837446,-1000.0,0.00040452,5]
[354451910,1740505837455,-1000.0,0.00040452,5]
[354451911,1740505837465,-1000.0,0.00040452,5]
[354451912,1740505837474,-1000.0,0.00040452,5]
[354451913,1740505837484,-1000.0,0.00040452,5]
[354451914,1740505837494,-645.67,0.00040547,38]
[354451915,1740505837503,-151.0,0.000407,18]
[354451916,1740505837513,-645.67,0.00040821,39]
[354451917,1740505837522,-1260.5209336,0.00040854,4]
[354451918,1740505837532,-579.56017,0.00041,14]
[354451919,1740505837541,-579.560172,0.00041,14]
[354451920,1740505837552,-714.600915,0.00041095,14]
[354451921,1740505837564,-714.600915,0.00041095,14]
[354451922,1740505837574,-14247.15,0.00041095,120]
[354451923,1740505837583,-645.67,0.00041095,40]
[354451924,1740505837594,-2957.83342361,0.000411,120]
[354451925,1740505837604,-895.38451709,0.00041107,9]
[354451926,1740505837615,-19603.87691479,0.00041122,2]
[354451927,1740505837625,-748.773259,0.00041208,120]
[354451928,1740505837636,-748.773259,0.00041208,120]
[354451929,1740505837646,-15558.1339398,0.00041252,4]
[354451930,1740505837661,-151.0,0.00041273,120]
[354451931,1740505837671,-335.66037,0.00041273,120]
[354451932,1740505837680,-335.66037,0.00041273,120]
[354451933,1740505837689,-232.128744,0.00041273,120]
[354451934,1740505837698,-232.128744,0.00041273,120]
[354451935,1740505837708,-151.0,0.00041273,120]
[354451936,1740505837717,-2768.435971,0.00041273,3]
[354451937,1740505837727,-2768.435971,0.00041273,3]
[354451938,1740505837736,-151.493971,0.00041294,120]
[354451939,1740505837745,-151.0,0.00041294,120]
[354451940,1740505837754,-151.0,0.00041294,120]
[354451941,1740505837763,-151.0,0.00041294,120]
[354451942,1740505837772,-151.0,0.00041294,5]
[354451943,1740505837782,-184.205019,0.00041294,120]
[354451944,1740505837791,-184.205019,0.00041294,120]
[354451945,1740505837800,-1185.042738,0.00041294,120]
[354451946,1740505837810,-1185.042738,0.00041294,120]
[354451947,1740505837819,-2957.83342361,0.000413,3]
[354451948,1740505837828,-160.0,0.0004131,2]
[354451949,1740505837838,-1455.64742412,0.0004134,2]
[354451950,1740505837847,-151.0,0.0004135,120]
[354451951,1740505837856,-645.67,0.00041369,41]
[354451952,1740505837867,-500.0,0.00041373,10]
[354451953,1740505837877,-157.465261,0.0004139,120]
[354451954,1740505837886,-151.0,0.0004144,120]
[354451955,1740505837896,-151.0,0.0004144,120]
[354451956,1740505837905,-151.0,0.0004144,120]
[354451957,1740505837914,-151.0,0.0004144,120]
[354451958,1740505837924,-151.0,0.0004144,120]
[354451960,1740505837933,-151.0,0.0004144,120]
[354451962,1740505837943,-151.0,0.0004144,120]
[354451963,1740505837952,-151.0,0.0004144,120]
[354451964,1740505837962,-151.0,0.0004144,120]
[354451965,1740505837971,-151.0,0.0004144,120]
[354451966,1740505837980,-151.0,0.0004144,120]
[354451967,1740505837990,-151.0,0.0004144,120]
[354451968,1740505837999,-151.0,0.0004144,120]
[354451969,1740505838009,-151.0,0.0004144,120]
[354451970,1740505838018,-151.638786,0.0004144,120]
[354451971,1740505838028,-151.236143,0.0004144,5]
[354451972,1740505838037,-196.428931,0.0004144,120]
[354451973,1740505838047,-184.205019,0.0004144,120]
[354451974,1740505838056,-184.205019,0.0004144,120]
[354451975,1740505838065,-184.205019,0.0004144,120]
[354451976,1740505838075,-184.205019,0.0004144,120]
[354451977,1740505838084,-184.205019,0.0004144,120]
[354451978,1740505838094,-184.205019,0.0004144,120]
[354451979,1740505838103,-184.205019,0.0004144,120]
[354451980,1740505838115,-184.205019,0.0004144,120]
[354451981,1740505838125,-184.205019,0.0004144,120]
[354451983,1740505838134,-184.205019,0.0004144,120]
[354451984,1740505838144,-335.66037,0.0004144,120]
[354451986,1740505838154,-335.66037,0.0004144,120]
[354451987,1740505838163,-335.66037,0.0004144,120]
[354451989,1740505838172,-335.66037,0.0004144,120]
[354451990,1740505838182,-335.66037,0.0004144,120]
[354451991,1740505838191,-335.66037,0.0004144,120]
[354451992,1740505838200,-335.66037,0.0004144,120]
[354451993,1740505838210,-335.66037,0.0004144,120]
[354451994,1740505838219,-335.66037,0.0004144,120]
[354451995,1740505838228,-335.66037,0.0004144,120]
[354451996,1740505838238,-1185.042738,0.0004144,120]
[354451997,1740505838247,-1185.042738,0.0004144,120]
[354451998,1740505838257,-1185.042738,0.0004144,120]
[354451999,1740505838267,-1185.042738,0.0004144,120]
[354452000,1740505838276,-1185.042738,0.0004144,120]
[354452001,1740505838292,-1185.042738,0.0004144,120]
[354452002,1740505838314,-1185.042738,0.0004144,120]
[354452003,1740505838330,-1185.042738,0.0004144,120]
[354452004,1740505838341,-1185.042738,0.0004144,120]
[354452005,1740505838352,-1185.042738,0.0004144,120]
[354452006,1740505838364,-151.0,0.0004144,120]
[354452007,1740505838374,-151.0,0.0004144,120]
[354452008,1740505838384,-232.128744,0.0004144,120]
[354452009,1740505838395,-232.128744,0.0004144,120]
[354452010,1740505838406,-232.128744,0.0004144,120]
[354452011,1740505838415,-232.128744,0.0004144,120]
[354452012,1740505838426,-232.128744,0.0004144,120]
[354452013,1740505838437,-232.128744,0.0004144,120]
[354452014,1740505838447,-232.128744,0.0004144,120]
[354452015,1740505838458,-232.128744,0.0004144,120]
[354452016,1740505838469,-232.128744,0.0004144,120]
[354452017,1740505838478,-232.128744,0.0004144,120]
[354452018,1740505838488,-151.0,0.0004144,120]
[354452019,1740505838499,-151.0,0.0004144,120]
[354452020,1740505838508,-151.0,0.0004144,120]
[354452021,1740505838519,-151.0,0.0004144,120]
[354452022,1740505838529,-152.22295,0.0004144,120]
[354452023,1740505838539,-4182.402107,0.0004144,120]
[354452024,1740505838549,-4182.402107,0.0004144,120]
[354452025,1740505838563,-4182.402107,0.0004144,120]
[354452026,1740505838573,-4182.402107,0.0004144,120]
[354452027,1740505838583,-2768.435971,0.0004144,3]
[354452028,1740505838595,-2768.435971,0.0004144,3]
[354452029,1740505838604,-2768.435971,0.0004144,3]
[354452030,1740505838614,-2768.435971,0.0004144,3]
[354452031,1740505838624,-2768.435971,0.0004144,3]
[354452032,1740505838635,-2768.435971,0.0004144,3]
[354452033,1740505838645,-2768.435971,0.0004144,3]
[354452034,1740505838654,-2768.435971,0.0004144,3]
[354452035,1740505838664,-2768.435971,0.0004144,3]
[354452036,1740505838673,-2768.435971,0.0004144,3]
[354452037,1740505838852,-584.462487,0.0004144,120]
[354452038,1740505838864,-584.462487,0.0004144,120]
[354452039,1740505838874,-584.462487,0.0004144,120]
[354452040,1740505838885,-584.462487,0.0004144,120]
[354452041,1740505838895,-151.0,0.0004144,120]
[354452042,1740505838905,-151.0,0.0004144,120]
[354452043,1740505838914,-748.773259,0.0004144,120]
[354452044,1740505838925,-748.773259,0.0004144,120]
[354452045,1740505838936,-748.773259,0.0004144,120]
[354452046,1740505838948,-748.773259,0.0004144,120]
[354452047,1740505838958,-1003.659899,0.0004144,120]
[354452048,1740505838968,-1003.659899,0.0004144,120]
[354452049,1740505838979,-324.519974,0.0004144,110]
[354452050,1740505838991,-1003.659899,0.0004144,120]
[354452051,1740505839001,-324.519974,0.0004144,110]
[354452052,1740505839011,-1003.659899,0.0004144,120]
[354452053,1740505839023,-1000.0,0.0004144,28]
[354452054,1740505839034,-1000.0,0.0004144,28]
[354452055,1740505839045,-1000.0,0.0004144,28]
[354452056,1740505839056,-1000.0,0.0004144,28]
[354452057,1740505839068,-1000.0,0.0004144,28]
[354452058,1740505839078,-1000.0,0.0004144,28]
[354452059,1740505839089,-324.519974,0.0004144,110]
[354452060,1740505839100,-324.519974,0.0004144,110]
[354452061,1740505839112,-1000.0,0.0004144,28]
[354452062,1740505839122,-1000.0,0.0004144,28]
[354452063,1740505839132,-1000.0,0.0004144,28]
[354452064,1740505839141,-1000.0,0.0004144,28]
[354452065,1740505839150,-754.97827884,0.0004144,28]
[354452066,1740505839209,-500.0,0.00034988,2]
[354452067,1740505839218,-500.0,0.00034988,7]
[354452068,1740505839228,-500.0,0.00034988,7]
[354452069,1740505839238,-250.0,0.00034988,2]
[354452070,1740505839247,-500.0,0.00034988,7]
[354452071,1740505839257,-245.02172116,0.0004144,28]
[354452072,1740505839266,-1000.0,0.0004144,28]
[354452073,1740505839275,-1000.0,0.0004144,28]
[354452074,1740505839286,-1000.0,0.0004144,28]
[354452075,1740505839296,-1000.0,0.0004144,28]
[354452076,1740505839305,-1000.0,0.0004144,28]
[354452077,1740505839314,-1000.0,0.0004144,28]
[354452078,1740505839324,-314.92916693,0.0004144,28]
[354452178,1740505842027,-500.0,0.00034988,7]
[354452179,1740505842036,-500.0,0.00034988,7]
[354452180,1740505842045,-500.0,0.00034988,2]
[354452181,1740505842054,-500.0,0.00034988,7]
[354452182,1740505842063,-500.0,0.00034988,7]
[354452183,1740505842072,-500.0,0.00034988,2]
[354452184,1740505842082,-500.0,0.00034988,7]
[354452185,1740505842091,-500.0,0.00034988,7]
[354452186,1740505842101,-500.0,0.00034988,7]
[354452187,1740505842110,-500.0,0.00034988,2]
[354452188,1740505842120,-500.0,0.00034988,7]
[354452189,1740505842129,-500.0,0.00034988,7]
[354452190,1740505842139,-500.0,0.00034988,2]
[354452191,1740505842148,-500.0,0.00034988,7]
[354452192,1740505842158,-500.0,0.00034988,7]
[354452193,1740505842167,-500.0,0.00034988,7]
[354452194,1740505842177,-500.0,0.00034988,7]
[354452195,1740505842186,-500.0,0.00034988,2]
[354452196,1740505842196,-302.99568131,0.00034988,7]
[354452197,1740505842206,-500.0,0.00034988,7]
[354452198,1740505842215,-500.0,0.00034988,7]
[354452199,1740505842224,-184.7635888,0.00034988,7]
[354452200,1740505842234,-500.0,0.00034988,7]
[354452201,1740505842243,-500.0,0.00034988,7]
[354452202,1740505842253,-500.0,0.00034988,7]
[354452203,1740505842262,-500.0,0.00034988,7]
[354452204,1740505842271,-500.0,0.00034988,7]
[354452205,1740505842280,-500.0,0.00034988,2]
[354452206,1740505842289,-500.0,0.00034988,7]
[354452207,1740505842299,-500.0,0.00034988,7]
[354452208,1740505842308,-500.0,0.00034988,7]
[354452209,1740505842317,-526.35847772,0.00034988,7]
[354452210,1740505842327,-500.0,0.00034988,7]
[354452211,1740505842337,-500.0,0.00034988,7]
[354452212,1740505842347,-500.0,0.00034988,7]
[354452213,1740505842356,-500.0,0.00034988,7]
[354452214,1740505842367,-500.0,0.00034988,7]
[354452215,1740505842377,-500.0,0.00034988,7]
[354452216,1740505842386,-500.0,0.00034988,2]
[354452217,1740505842396,-500.0,0.00034988,7]
[354452218,1740505842405,-685.07083307,0.0004144,28]
[354452219,1740505842414,-1000.0,0.0004144,28]
[354452220,1740505842423,-1000.0,0.0004144,28]
[354452221,1740505842433,-1000.0,0.0004144,28]
[354452222,1740505842443,-1000.0,0.0004144,28]
[354452223,1740505842452,-1000.0,0.0004144,28]
[354452224,1740505842461,-1000.0,0.0004144,28]
[354452225,1740505842471,-1000.0,0.0004144,28]
[354452226,1740505842480,-1000.0,0.0004144,28]
[354452227,1740505842489,-1000.0,0.0004144,28]
[354452228,1740505842499,-1000.0,0.0004144,28]
[354452229,1740505842509,-1000.0,0.0004144,28]
[354452230,1740505842518,-1000.0,0.0004144,28]
[354452231,1740505842528,-1000.0,0.0004144,28]
[354452232,1740505842537,-1000.0,0.0004144,28]
[354452233,1740505842547,-151.172183,0.0004144,120]
[354452234,1740505842558,-1000.0,0.0004144,28]
[354452235,1740505842567,-1000.0,0.0004144,28]
[354452236,1740505842576,-1000.0,0.0004144,28]
[354452237,1740505842586,-1000.0,0.0004144,28]
[354452238,1740505842595,-930.494917,0.0004144,28]
[354452239,1740505842605,-285.7,0.0004144,120]
[354452240,1740505842616,-285.7,0.0004144,120]
[354452241,1740505842626,-285.7,0.00041449,120]
[354452242,1740505842637,-285.7,0.00041449,120]
[354452243,1740505842647,-285.7,0.00041449,120]
[354452244,1740505842656,-285.7,0.00041449,120]
[354452245,1740505842665,-51332.17360532,0.00041449,7]
[354452259,1740505842995,-163.0,0.00034988,2]
[354452260,1740505843005,-500.0,0.00034988,2]
[354452261,1740505843015,-163.0,0.0004,2]
[354452264,1740505843025,-10726.45369678,0.00041449,7]
[354452268,1740505843410,-14305.20000001,0.00041449,7]
[354452271,1740505846605,-51660.45002384,0.00041449,7]
[354452272,1740505846621,-100151.02162416,0.00041449,7]
[354452278,1740505852537,153.0,6.849e-05,2]
[354452279,1740505852740,153.0,6.849e-05,2]
[354452280,1740505852952,153.0,6.849e-05,2]
[354452281,1740505853176,153.0,6.849e-05,2]
[354452282,1740505853962,153.0,6.849e-05,2]
[354452283,1740505854355,153.0,6.849e-05,2]
[354452284,1740505854401,153.0,6.849e-05,2]
[354452285,1740505854565,153.0,6.849e-05,2]
[354452286,1740505854765,153.0,6.849e-05,2]
[354452287,1740505854966,153.0,6.849e-05,2]